bitfinex-derivatives/quotes_SOLF0:USTF0_20250404
["timestamp","ask_amount","ask_price","bid_price","bid_amount"]
[1743750537162,8.65334136,116.38,116.36,0.0566459]
[1743750538559,0.05804136,116.38,116.36,8.6525459]
[1743750538763,0.05804136,116.38,116.36,0.0566459]
[1743750539763,0.05804136,116.38,116.36,8.6528459]
[1743750539958,0.05804136,116.38,116.36,0.0566459]
[1743750540462,8.65334136,116.38,116.36,0.0566459]
[1743750540659,0.05804136,116.38,116.36,0.0566459]
[1743750541062,8.65334136,116.38,116.36,0.0566459]
[1743750541259,0.05804136,116.38,116.36,0.0566459]
[1743750542465,8.65304136,116.38,116.36,0.0566459]
[1743750542764,0.05804136,116.38,116.36,0.0566459]
[1743750542959,0.05804136,116.38,116.37,8.5956]
[1743750543465,0.05804136,116.38,116.36,40.0126459]
[1743750543765,0.05804136,116.38,116.36,8.6526459]
[1743750543968,0.05804136,116.38,116.37,8.5956]
[1743750544768,0.05804136,116.38,116.36,8.6526459]
[1743750545962,0.05804136,116.38,116.37,8.5956]
[1743750547271,0.05804136,116.38,116.36,8.6526459]
[1743750547969,0.05804136,116.38,116.37,8.5956]
[1743750550269,0.05804136,116.38,116.37,55.24433266]
[1743750550666,0.05804136,116.38,116.37,39.9356]
[1743750555969,4.136e-05,116.38,116.37,39.9356]
[1743750556173,4.136e-05,116.39,116.38,8.5949]
[1743750557377,0.05415701,116.4,116.39,8.5942]
[1743750557678,13.0929,116.45,116.39,9.79013501]
[1743750557874,13.0929,116.45,116.41,9.79013501]
[1743750558074,0.06047737,116.43,116.41,9.79013501]
[1743750558268,0.06047737,116.43,116.42,0.06531736]
[1743750558876,0.06047737,116.43,116.42,8.65701736]
[1743750561179,7.737e-05,116.43,116.42,18.44715237]
[1743750561482,2.1902,116.47,116.46,8.589]
[1743750561678,20.73113501,116.5,116.46,9.79013501]
[1743750561983,10.941,116.5,116.46,9.79013501]
[1743750562282,12.00503501,116.51,116.46,9.79013501]
[1743750562283,2.2149,116.51,116.49,9.79013501]
[1743750562583,57.24037302,116.54,116.5,41.33013501]
[1743750562584,49.59583801,116.54,116.5,41.33013501]
[1743750562785,0.06253525,116.51,116.5,41.33013501]
[1743750564078,0.06253525,116.51,116.5,49.91613501]
[1743750564584,0.06253525,116.51,116.5,41.33013501]
[1743750565382,0.06253525,116.51,116.5,49.91613501]
[1743750565881,0.06253525,116.51,116.5,55.3938951]
[1743750566285,2.3585,116.56,116.5,46.8078951]
[1743750566583,47.45023801,116.58,116.55,15.2678951]
[1743750566782,47.45023801,116.58,116.56,8.5809]
[1743750567084,4.5379,116.61,116.56,8.5809]
[1743750567486,0.06503773,116.6,116.57,0.06076908]
[1743750568581,8.5794,116.59,116.57,0.06076908]
[1743750568779,15.2678951,116.59,116.51,47.6478951]
[1743750569181,8.5814,116.57,116.53,8.5836]
[1743750569381,47.6478951,116.6,116.51,47.6478951]
[1743750569689,8.5807,116.58,116.54,8.5826]
[1743750569981,0.06026913,116.57,116.54,0.06381079]
[1743750570186,0.06026913,116.57,116.54,32.46381079]
[1743750570889,0.06026913,116.57,116.55,15.2678951]
[1743750571392,0.06026913,116.57,116.56,8.5816]
[1743750574802,0.06026913,116.57,116.55,23.8500951]
[1743750575293,0.06026913,116.57,116.56,8.5816]
[1743750576593,0.06026913,116.57,116.55,8.5821]
[1743750576887,0.06026913,116.57,116.54,32.46381079]
[1743750577094,0.06026913,116.57,116.55,8.5824]
[1743750578093,0.06026913,116.57,116.54,32.36381079]
[1743750578396,0.06026913,116.57,116.56,8.5816]
[1743750579084,0.06026913,116.57,116.56,23.8494951]
[1743750579693,6.913e-05,116.57,116.56,23.8494951]
[1743750579896,2.367,116.61,116.6,8.5787]
[1743750580090,2.1545,116.64,116.59,32.42]
[1743750580994,2.1545,116.64,116.62,8.5768]
[1743750581189,0.06322403,116.63,116.62,8.5768]
[1743750582687,0.06322403,116.63,116.61,8.5777]
[1743750584198,0.06322403,116.63,116.6,8.63968867]
[1743750585399,8.64022403,116.63,116.6,0.06128867]
[1743750585997,8.64022403,116.63,116.6,8.63988867]
[1743750586600,8.5773,116.62,116.6,0.06128867]
[1743750586894,10.8621,116.62,116.6,0.06128867]
[1743750587100,13.0711,116.62,116.6,0.06128867]
[1743750589704,8.5779,116.61,116.6,0.06128867]
[1743750590198,13.0713,116.62,116.6,0.06128867]
[1743750591401,4.4938,116.62,116.6,0.06128867]
[1743750592404,4.4938,116.62,116.6,8.63988867]
[1743750593103,4.4938,116.62,116.6,0.06128867]
[1743750594903,4.4938,116.62,116.6,8.63998867]
[1743750595900,4.4938,116.62,116.6,0.06128867]
[1743750596903,4.4938,116.62,116.6,8.63978867]
[1743750598909,4.4938,116.62,116.61,8.5779]
[1743750599306,4.4938,116.62,116.6,8.63958867]
[1743750600209,4.4938,116.62,116.61,8.5779]
[1743750600402,4.4938,116.62,116.6,0.06128867]
[1743750600708,4.4938,116.62,116.6,8.63938867]
[1743750600908,4.4938,116.62,116.6,0.06128867]
[1743750601104,4.4938,116.62,116.61,8.5779]
[1743750601505,2.2848,116.62,116.61,8.5779]
[1743750602709,2.2848,116.62,116.6,8.63958867]
[1743750604513,2.2848,116.62,116.6,0.06128867]
[1743750605012,2.2848,116.62,116.6,8.63968867]
[1743750605214,2.2848,116.62,116.6,0.06128867]
[1743750606710,2.2848,116.62,116.6,8.63968867]
[1743750607521,2.2848,116.62,116.61,8.5779]
[1743750609819,2.2848,116.62,116.6,8.63958867]
[1743750610514,12.04409901,116.62,116.6,0.06128867]
[1743750610817,20.62139901,116.62,116.6,0.06128867]
[1743750611518,8.5779,116.61,116.6,0.06128867]
[1743750611720,18.33719901,116.61,116.56,41.89929901]
[1743750612022,9.75929901,116.61,116.56,9.75929901]
[1743750612320,18.33759901,116.61,116.57,8.5805]
[1743750612822,8.64152938,116.6,116.58,0.05920738]
[1743750613010,9.82212839,116.6,116.58,0.05920738]
[1743750613719,8.5794,116.59,116.58,0.05920738]
[1743750614311,0.06282938,116.6,116.58,0.05920738]
[1743750614528,0.06282938,116.6,116.59,9.75929901]
[1743750615124,0.06282938,116.6,116.59,18.33869901]
[1743750617526,0.06282938,116.6,116.58,18.39840639]
[1743750617824,0.06282938,116.6,116.58,9.81850639]
[1743750618029,0.06282938,116.6,116.58,0.05920738]
[1743750619534,0.06282938,116.6,116.58,8.63920738]
[1743750620832,0.06282938,116.6,116.58,0.05920738]
[1743750623132,9.82212839,116.6,116.58,0.05920738]
[1743750623530,8.5794,116.59,116.58,0.05920738]
[1743750625337,18.40112839,116.6,116.58,0.05920738]
[1743750626037,8.5794,116.59,116.58,0.05920738]
[1743750627132,18.40122839,116.6,116.58,0.05920738]
[1743750627337,0.06282938,116.6,116.58,0.05920738]
[1743750628537,8.64182938,116.6,116.58,0.05920738]
[1743750628736,0.06282938,116.6,116.58,0.05920738]
[1743750629233,0.06282938,116.6,116.58,9.81850639]
[1743750629539,0.06282938,116.6,116.58,18.39820639]
[1743750629933,0.06282938,116.6,116.58,0.05920738]
[1743750630935,0.06282938,116.6,116.58,9.81850639]
[1743750631439,0.06282938,116.6,116.58,8.63900738]
[1743750631638,0.06282938,116.6,116.58,0.05920738]
[1743750631836,8.64202938,116.6,116.58,0.05920738]
[1743750632640,8.5794,116.59,116.58,0.05920738]
[1743750633041,18.33869901,116.59,116.58,0.05920738]
[1743750633238,50.36122839,116.6,116.58,0.05920738]
[1743750633441,40.60192938,116.6,116.58,0.05920738]
[1743750633645,0.06282938,116.6,116.58,0.05920738]
[1743750634440,8.64202938,116.6,116.58,0.05920738]
[1743750634639,0.06282938,116.6,116.58,0.05920738]
[1743750634839,9.82212839,116.6,116.58,0.05920738]
[1743750635039,18.40122839,116.6,116.58,0.05920738]
[1743750635747,8.5794,116.59,116.58,0.05920738]
[1743750636245,18.40122839,116.6,116.58,0.05920738]
[1743750636446,8.64192938,116.6,116.58,0.05920738]
[1743750636644,0.06282938,116.6,116.58,0.05920738]
[1743750637639,9.82212839,116.6,116.58,0.05920738]
[1743750637847,8.5794,116.59,116.58,0.05920738]
[1743750639243,18.33869901,116.59,116.58,0.05920738]
[1743750639444,20.49969901,116.59,116.58,0.05920738]
[1743750641946,52.55969901,116.59,116.58,0.05920738]
[1743750642140,8.5809,116.57,116.52,41.81929901]
[1743750642446,9.75929901,116.57,116.52,41.81929901]
[1743750642649,18.34049901,116.57,116.53,8.5838]
[1743750643048,9.75929901,116.57,116.46,1000.09440381]
[1743750643347,9.81725107,116.56,116.54,0.05935832]
[1743750643651,18.39935107,116.56,116.54,0.05935832]
[1743750643949,9.81725107,116.56,116.54,0.05935832]
[1743750644146,9.75929901,116.55,116.5,9.75929901]
[1743750644346,32.13795206,116.56,116.5,9.75929901]
[1743750644543,41.83929901,116.56,116.51,9.75929901]
[1743750644845,8.5825,116.55,116.51,18.34389901]
[1743750645040,41.83929901,116.56,116.51,9.75929901]
[1743750645347,0.05498187,116.55,116.52,8.63893267]
[1743750646746,0.05498187,116.55,116.53,8.5836]
[1743750648543,0.05498187,116.55,116.54,8.5831]
[1743750648750,32.06,116.61,116.54,9.75929901]
[1743750648948,9.75929901,116.62,116.57,9.75929901]
[1743750649248,32.1,116.62,116.58,9.75929901]
[1743750649746,32.1,116.62,116.59,8.5789]
[1743750649947,0.05836161,116.61,116.59,0.06527386]
[1743750650145,0.05836161,116.61,116.6,8.5787]
[1743750651252,0.05836161,116.61,116.59,9.82457287]
[1743750652044,0.05836161,116.61,116.6,18.33799901]
[1743750654152,0.05836161,116.61,116.6,8.5787]
[1743750656856,0.05836161,116.61,116.6,18.33799901]
[1743750658650,2.2863,116.67,116.6,9.75929901]
[1743750658956,2.2863,116.67,116.64,9.75929901]
[1743750659254,503.91929901,116.69,116.65,9.75929901]
[1743750659455,512.49179901,116.69,116.65,18.33389901]
[1743750659750,503.91929901,116.69,116.65,9.75929901]
[1743750660054,0.05970956,116.68,116.66,0.06118585]
[1743750660349,8.63260956,116.68,116.66,0.06118585]
[1743750660949,0.05970956,116.68,116.66,0.06118585]
[1743750661355,8.63290956,116.68,116.66,0.06118585]
[1743750661850,0.05970956,116.68,116.66,8.63528585]
[1743750662055,0.05970956,116.68,116.66,0.06118585]
[1743750662455,8.63300956,116.68,116.66,0.06118585]
[1743750662850,0.05970956,116.68,116.66,0.06118585]
[1743750663353,0.05970956,116.68,116.66,9.82048486]
[1743750663554,0.05970956,116.68,116.67,9.75929901]
[1743750663753,0.05970956,116.68,116.67,18.33279901]
[1743750664255,93.85020675,116.76,116.67,50.35929901]
[1743750664456,93.85020675,116.76,116.72,9.75929901]
[1743750664757,93.85020675,116.76,116.72,8.5694]
[1743750664956,93.85020675,116.76,116.72,18.32869901]
[1743750665153,8.5674,116.76,116.72,9.75929901]
[1743750665347,8.5674,116.76,116.68,35.5301]
[1743750665348,9.75929901,116.76,116.68,35.5301]
[1743750665552,9.81750841,116.75,116.73,0.0647779]
[1743750665852,0.0582094,116.75,116.73,0.0647779]
[1743750666350,8.6264094,116.75,116.73,0.0647779]
[1743750666558,0.0582094,116.75,116.73,0.0647779]
[1743750666756,8.5684,116.74,116.73,0.0647779]
[1743750671260,15.21811792,116.74,116.68,33.84]
[1743750671458,15.21811792,116.74,116.67,15.21811792]
[1743750672063,15.21811792,116.74,116.67,23.79111792]
[1743750672258,33.9,116.75,116.66,35.4478]
[1743750672468,0.05674324,116.72,116.7,8.5707]
[1743750672854,0.05674324,116.72,116.69,49.11814653]
[1743750673060,0.05674324,116.72,116.69,57.68994653]
[1743750673268,0.05674324,116.72,116.69,49.11814653]
[1743750673659,0.05674324,116.72,116.7,8.5713]
[1743750673863,0.05674324,116.72,116.69,49.11814653]
[1743750674264,0.05674324,116.72,116.7,8.5709]
[1743750674462,0.05674324,116.72,116.69,49.11814653]
[1743750674865,0.05674324,116.72,116.71,8.5706]
[1743750675062,0.05674324,116.72,116.69,49.11814653]
[1743750676461,0.05674324,116.72,116.7,8.5709]
[1743750677564,0.05674324,116.72,116.69,57.68994653]
[1743750678063,0.05674324,116.72,116.69,0.06002861]
[1743750678961,8.571,116.71,116.69,0.06002861]
[1743750679760,13.34994324,116.72,116.69,0.06002861]
[1743750680165,4.77984324,116.72,116.69,0.06002861]
[1743750680966,4.77984324,116.72,116.7,8.5712]
[1743750681563,2.40604324,116.72,116.7,8.5712]
[1743750681763,2.40604324,116.72,116.71,8.5706]
[1743750682468,0.05674324,116.72,116.71,8.5706]
[1743750686269,0.05674324,116.72,116.7,8.5709]
[1743750687273,0.05674324,116.72,116.69,8.63172861]
[1743750687671,0.05674324,116.72,116.7,9.74207685]
[1743750687970,0.05674324,116.72,116.7,18.31337685]
[1743750688374,0.05674324,116.72,116.71,9.74207685]
[1743750688671,0.05674324,116.72,116.71,18.31267685]
[1743750688871,0.05674324,116.72,116.71,9.74207685]
[1743750691277,0.05674324,116.72,116.69,8.63172861]
[1743750691577,8.62664324,116.72,116.69,0.06002861]
[1743750693172,8.5708,116.71,116.69,0.06002861]
[1743750695884,8.62694324,116.72,116.69,0.06002861]
[1743750696279,0.05674324,116.72,116.69,0.06002861]
[1743750696482,8.5706,116.71,116.69,0.06002861]
[1743750696685,0.05674324,116.72,116.69,0.06002861]
[1743750697079,8.62704324,116.72,116.69,0.06002861]
[1743750697481,0.05674324,116.72,116.71,9.74207685]
[1743750698480,0.05674324,116.72,116.71,18.31267685]
[1743750699286,0.05674324,116.72,116.71,9.74207685]
[1743750699884,2.1511,116.76,116.71,18.31267685]
[1743750700187,2.3728,116.77,116.74,9.74207685]
[1743750700389,2.3484,116.78,116.75,18.30967685]
[1743750700591,2.3484,116.78,116.76,9.74207685]
[1743750700884,13.89807584,116.79,116.76,18.30877685]
[1743750701187,11.73127584,116.79,116.77,9.74207685]
[1743750701390,0.05479579,116.79,116.77,9.74207685]
[1743750702285,0.05479579,116.79,116.78,9.74207685]
[1743750702483,0.05479579,116.79,116.76,0.05704867]
[1743750702886,8.61979579,116.79,116.76,0.05704867]
[1743750703594,0.05479579,116.79,116.76,0.05704867]
[1743750704386,33.99479579,116.79,116.73,34.0]
[1743750704590,33.99479579,116.79,116.72,15.20628841]
[1743750704891,33.99479579,116.79,116.71,33.98]
[1743750705089,33.94,116.79,116.72,15.20628841]
[1743750705291,2.2491,116.8,116.72,15.20628841]
[1743750705593,0.05513117,116.77,116.75,0.0605958]
[1743750706288,0.05513117,116.77,116.76,8.5668]
[1743750706490,0.05513117,116.77,116.76,23.77308841]
[1743750706687,155.98159853,116.88,116.76,38.97257682]
[1743750706993,51.56380337,116.86,116.79,15.20628841]
[1743750707193,51.56380337,116.86,116.81,15.20628841]
[1743750707496,51.56380337,116.86,116.82,8.5624]
[1743750707888,0.05704914,116.85,116.83,0.05556849]
[1743750708689,8.5611,116.84,116.83,0.05556849]
[1743750709395,42.91764914,116.85,116.83,0.05556849]
[1743750710094,34.35704914,116.85,116.83,0.05556849]
[1743750710489,0.05704914,116.85,116.83,0.05556849]
[1743750712296,8.61764914,116.85,116.83,0.05556849]
[1743750712794,0.05704914,116.85,116.79,23.77058841]
[1743750713192,0.05704914,116.85,116.79,15.20628841]
[1743750713893,8.61784914,116.85,116.79,15.20628841]
[1743750714098,0.05704914,116.85,116.81,0.06369782]
[1743750714399,8.61784914,116.85,116.81,8.62649782]
[1743750714594,8.61784914,116.85,116.81,0.06369782]
[1743750715699,8.61784914,116.85,116.81,8.62679782]
[1743750715898,8.5611,116.84,116.81,0.06369782]
[1743750716299,0.05704914,116.85,116.81,0.06369782]
[1743750716496,8.5612,116.84,116.81,0.06369782]
[1743750716696,34.28,116.83,116.81,0.06369782]
[1743750717202,42.8418,116.83,116.81,0.06369782]
[1743750717994,34.28,116.83,116.81,0.06369782]
[1743750718299,8.5614,116.84,116.81,0.06369782]
[1743750718500,42.8214,116.84,116.81,0.06369782]
[1743750719493,49.46628841,116.84,116.81,0.06369782]
[1743750719702,49.46628841,116.84,116.77,15.20628841]
[1743750720198,8.5631,116.82,116.78,8.565]
[1743750720396,15.20628841,116.84,116.77,15.20628841]
[1743750720598,22.05348841,116.86,116.77,49.44628841]
[1743750720794,0.05745661,116.82,116.8,8.5637]
[1743750721199,0.05745661,116.82,116.8,8.6295542]
[1743750722599,0.05745661,116.82,116.81,8.5633]
[1743750724502,0.05745661,116.82,116.81,23.76958841]
[1743750724698,0.05745661,116.82,116.81,8.5633]
[1743750725602,5.661e-05,116.82,116.81,23.76958841]
[1743750730407,5.661e-05,116.82,116.81,8.5633]
[1743750735218,5.661e-05,116.82,116.81,42.7033]
[1743750736714,493.0,116.94,116.81,34.14]
[1743750737016,56.08638841,116.93,116.85,15.20628841]
[1743750737716,8.5581,116.89,116.84,42.8005]
[1743750737912,8.5581,116.89,116.88,0.06048128]
[1743750738214,8.5581,116.89,116.87,0.05773284]
[1743750738722,10.7805,116.88,116.84,8.5605]
[1743750738914,13.1169,116.88,116.83,15.20628841]
[1743750739115,34.3,116.87,116.81,15.20628841]
[1743750739317,4.5587,116.88,116.81,15.20628841]
[1743750740017,0.05817621,116.86,116.83,15.26039559]
[1743750741317,0.05817621,116.86,116.85,8.5603]
[1743750744418,2.3616,116.92,116.85,15.20628841]
[1743750744620,34.26,116.95,116.87,15.20628841]
[1743750744819,2.3616,116.94,116.87,15.20628841]
[1743750745023,8.5547,116.93,116.89,8.5569]
[1743750745524,45.1358,116.94,116.9,8.5566]
[1743750745722,0.06409301,116.92,116.9,0.0623086]
[1743750746326,0.06409301,116.92,116.9,8.6189086]
[1743750746626,0.06409301,116.92,116.9,0.0623086]
[1743750747420,0.06409301,116.92,116.91,8.5559]
[1743750748322,0.06409301,116.92,116.9,8.6186086]
[1743750748718,0.06409301,116.92,116.9,0.0623086]
[1743750748919,0.06409301,116.92,116.91,8.5559]
[1743750749325,0.06409301,116.92,116.9,0.0623086]
[1743750749534,0.06409301,116.92,116.9,8.6186086]
[1743750749920,0.06409301,116.92,116.91,8.5559]
[1743750751329,2.2313,116.98,116.91,15.20628841]
[1743750751530,46.92510337,117.03,116.94,15.20628841]
[1743750751531,53.93628841,117.02,116.94,15.20628841]
[1743750751725,6.7613,117.02,116.96,8.5518]
[1743750751923,2.2064,117.02,116.93,34.24]
[1743750752124,93.85020675,117.04,117.01,15.20628841]
[1743750752318,140.77531012,117.05,117.04,8.5464]
[1743750752517,31.69730853,117.05,117.04,8.5464]
[1743750753320,31.69730853,117.05,117.03,8.5469]
[1743750753726,0.06136488,117.06,117.01,23.81850024]
[1743750754031,34.58,117.05,117.01,0.06371183]
[1743750754431,38.995,117.05,116.98,15.20628841]
[1743750754629,8.5488,117.01,116.96,15.20628841]
[1743750754835,34.6,117.0,116.95,8.5527]
[1743750755029,34.6,117.0,116.94,15.20628841]
[1743750755622,0.06176498,116.98,116.96,0.06092914]
[1743750758232,34.6,116.97,116.91,24.24333992]
[1743750758429,2.28296498,116.98,116.93,24.24333992]
[1743750758631,2.1696,116.99,116.93,58.82333992]
[1743750758833,10.7201,116.99,116.95,8.5526]
[1743750759129,2.1696,116.99,116.93,58.82333992]
[1743750759324,8.5515,116.97,116.96,0.05746089]
[1743750759529,34.54,116.98,116.91,24.24333992]
[1743750759926,0.06381742,116.95,116.93,0.06141979]
[1743750760436,0.06381742,116.95,116.94,8.5537]
[1743750762641,1.742e-05,116.95,116.94,8.5537]
[1743750762932,2.2212,117.02,116.94,8.56]
[1743750763238,4.5836,117.04,117.0,8.5493]
[1743750763840,4.5836,117.04,116.99,8.5497]
[1743750764042,0.05444555,117.03,117.01,0.05823156]
[1743750764546,8.5479,117.02,117.01,0.05823156]
[1743750765041,8.5497,117.0,116.97,8.5512]
[1743750765239,4.5836,117.04,116.97,8.5512]
[1743750765445,24.24333992,117.03,116.92,24.24333992]
[1743750765633,34.4,117.02,116.94,8.5531]
[1743750765940,34.4,117.02,116.93,34.4]
[1743750766140,8.61339192,116.99,116.96,8.61533207]
[1743750766536,8.61339192,116.99,116.96,0.06323207]
[1743750766733,8.5509,116.98,116.96,0.06323207]
[1743750766933,0.06319192,116.99,116.96,0.06323207]
[1743750767237,8.61359192,116.99,116.96,0.06323207]
[1743750767538,0.06319192,116.99,116.96,0.06323207]
[1743750768036,34.48319192,116.99,116.96,0.06323207]
[1743750768237,4.4056,116.98,116.91,34.42]
[1743750768440,4.4056,116.98,116.89,34.42]
[1743750768841,8.5545,116.93,116.89,8.557]
[1743750769137,34.42,116.95,116.88,34.42]
[1743750769346,34.42,116.95,116.9,0.06558211]
[1743750769347,8.5563,116.91,116.9,0.06558211]
[1743750769544,42.9763,116.91,116.9,0.06558211]
[1743750769843,45.149,116.91,116.9,0.06558211]
[1743750770645,8.5571,116.9,116.86,8.5593]
[1743750770836,10.8946,116.9,116.86,8.5593]
[1743750771548,2.3375,116.9,116.87,8.5585]
[1743750771845,2.39241499,116.9,116.87,8.61472472]
[1743750772347,2.39241499,116.9,116.87,0.05622472]
[1743750772645,10.94911499,116.9,116.87,0.05622472]
[1743750772846,2.39241499,116.9,116.87,0.05622472]
[1743750773241,10.94941499,116.9,116.87,0.05622472]
[1743750773848,8.5575,116.89,116.87,0.05622472]
[1743750774047,2.39241499,116.9,116.87,0.05622472]
[1743750774446,8.5576,116.89,116.87,0.05622472]
[1743750776243,4.75681499,116.9,116.87,0.05622472]
[1743750776748,4.75681499,116.9,116.82,58.62333992]
[1743750776938,4.7019,116.9,116.8,414.58333992]
[1743750777142,8.5596,116.86,116.83,8.5613]
[1743750777343,8.5596,116.86,116.79,58.56333992]
[1743750777544,2.3743,116.85,116.79,58.56333992]
[1743750777848,2.3743,116.85,116.82,8.5619]
[1743750778048,0.05996412,116.83,116.81,0.05110814]
[1743750778350,0.05996412,116.83,116.82,8.5625]
[1743750784753,0.05996412,116.83,116.81,0.05110814]
[1743750785056,0.05996412,116.83,116.75,24.24333992]
[1743750785249,0.05996412,116.83,116.77,24.24333992]
[1743750785454,4.5806,116.84,116.78,34.48]
[1743750785654,4.5806,116.84,116.79,24.24333992]
[1743750785954,34.48,116.85,116.79,24.24333992]
[1743750786155,0.06129565,116.83,116.79,24.24333992]
[1743750786560,0.06129565,116.83,116.82,8.5625]
[1743750791059,9.565e-05,116.83,116.82,8.5625]
[1743750795667,9.565e-05,116.83,116.82,23.74778878]
[1743750801177,4.5574,116.89,116.88,8.5581]
[1743750801378,8.5561,116.91,116.88,8.5581]
[1743750801578,38.6442,116.91,116.88,8.5581]
[1743750801872,13.0406,116.91,116.89,8.5574]
[1743750802273,13.10070488,116.91,116.89,0.06129565]
[1743750802477,4.54430488,116.91,116.89,0.06129565]
[1743750803178,4.54430488,116.91,116.9,8.5567]
[1743750803378,0.06010488,116.91,116.9,8.5567]
[1743750803777,0.06010488,116.91,116.9,23.74198878]
[1743750803977,0.06010488,116.91,116.9,58.18198878]
[1743750804279,0.06010488,116.91,116.9,8.5567]
[1743750809071,4.5792,116.97,116.95,8.5525]
[1743750809271,13.1309,116.97,116.92,15.18528878]
[1743750809778,4.5792,116.97,116.92,15.18528878]
[1743750810178,0.05562296,116.96,116.93,0.0597422]
[1743750810581,0.05562296,116.96,116.94,8.5534]
[1743750810779,8.60822296,116.96,116.94,8.5534]
[1743750810983,0.05562296,116.96,116.93,0.0597422]
[1743750812981,0.05562296,116.96,116.95,8.553]
[1743750813379,49.62528878,117.07,116.94,30.37057756]
[1743750813680,6.6992,117.06,116.99,15.18528878]
[1743750813881,6.6992,117.06,116.99,49.60528878]
[1743750814082,6.6992,117.06,117.03,8.5468]
[1743750814480,8.5458,117.05,117.03,0.06368425]
[1743750814880,6.75923583,117.06,116.99,49.60528878]
[1743750815281,6.75923583,117.06,116.96,0.1249]
[1743750815282,49.54528878,117.05,116.97,15.18528878]
[1743750816184,260.30551687,117.26,117.04,47.46297756]
[1743750816385,15.18528878,117.16,117.07,15.18528878]
[1743750816576,15.18528878,117.14,117.07,49.78528878]
[1743750816777,23.72448878,117.14,117.09,8.5424]
[1743750816981,15.18528878,117.12,117.04,34.58]
[1743750817184,4.4163,117.11,117.07,8.5437]
[1743750817376,0.06407351,117.09,117.07,0.06375248]
[1743750817872,0.06407351,117.09,117.08,8.5435]
[1743750818973,0.06407351,117.09,117.08,32.74386229]
[1743750820182,6.7716,117.15,117.08,24.20036229]
[1743750820484,6.7716,117.15,117.07,58.68036229]
[1743750820686,6.7716,117.15,117.1,8.5418]
[1743750820881,34.46,117.14,117.1,8.5418]
[1743750821487,0.06116292,117.13,117.11,8.60175765]
[1743750821786,0.06116292,117.13,117.11,0.06045765]
[1743750822485,8.60116292,117.13,117.05,24.20036229]
[1743750822884,8.54,117.13,117.08,8.5432]
[1743750823080,8.541,117.12,117.08,8.5432]
[1743750823284,34.36,117.11,117.04,390.36]
[1743750823485,34.46,117.12,117.07,24.20036229]
[1743750823688,0.05557311,117.09,117.07,24.20036229]
[1743750823887,0.05557311,117.09,117.08,8.5435]
[1743750826288,0.05557311,117.09,117.07,8.5439]
[1743750827078,0.05557311,117.09,117.07,4.9796]
[1743750827483,2.19887311,117.09,117.06,8.60292487]
[1743750827884,2.19887311,117.09,116.95,344.20018355]
[1743750827885,24.20036229,117.07,116.95,292.77018355]
[1743750828183,24.20036229,117.05,116.95,292.77018355]
[1743750828383,24.20036229,117.05,116.94,24.31916229]
[1743750828384,35.8909749,117.04,116.94,24.31916229]
[1743750828582,491.98,117.06,116.96,24.20036229]
[1743750828787,8.5468,117.04,116.99,8.5497]
[1743750828988,8.5468,117.04,117.0,0.05583673]
[1743750828989,0.0585096,117.02,117.0,0.05583673]
[1743750831789,0.0585096,117.02,117.0,8.60503673]
[1743750832888,34.22,117.01,117.0,0.05583673]
[1743750833393,34.22,117.01,117.0,8.60523673]
[1743750833888,34.2585096,117.02,117.01,8.5486]
[1743750834892,34.2585096,117.02,117.0,8.60483673]
[1743750835288,34.2585096,117.02,117.0,0.05583673]
[1743750836593,42.8066096,117.02,117.0,0.05583673]
[1743750836789,34.2585096,117.02,117.0,0.05583673]
[1743750837299,42.8068096,117.02,117.0,0.05583673]
[1743750839599,34.2585096,117.02,117.0,8.60513673]
[1743750841103,34.2585096,117.02,117.01,8.5486]
[1743750841293,0.0585096,117.02,117.01,8.5486]
[1743750841496,9.6e-06,117.02,117.01,23.69525422]
[1743750841697,491.98,117.06,117.05,8.5457]
[1743750841892,33.96,117.07,117.05,8.5457]
[1743750842101,33.96,117.07,117.01,15.14665422]
[1743750842394,42.5046,117.07,117.01,15.14665422]
[1743750842799,42.5046,117.07,117.04,8.5458]
[1743750843000,0.06087984,117.05,117.04,8.5458]
[1743750843897,0.06087984,117.05,117.03,0.05835938]
[1743750844102,33.94087984,117.05,117.03,0.05835938]
[1743750844500,42.48697984,117.05,117.03,0.05835938]
[1743750844701,33.94087984,117.05,117.03,0.05835938]
[1743750845706,8.5464,117.04,117.03,0.05835938]
[1743750845911,0.06087984,117.05,117.03,0.05835938]
[1743750846102,7.984e-05,117.05,117.04,15.14665422]
[1743750846302,7.984e-05,117.05,117.04,57.61305422]
[1743750846499,492.18,117.11,117.04,53.71585422]
[1743750846703,492.18,117.11,117.1,8.5421]
[1743750846902,2.3551,117.12,117.06,15.14665422]
[1743750847204,503.0184,117.16,117.13,8.5395]